Cogmind - Beta 13 @@@ ROGUE MODE // 2024.06.27 @ 05:48:37 Player: Malth Result: Destroyed by S-43 Plague with Heavy Machine Gun Performance ------------- Evolutions (9) 4500 Regions Visited (22) 4400 Robots Destroyed (63) 315 Value Destroyed (1628) 1628 Prototype IDs (22) 440 Alien Tech Used (0) 0 Bonus (3508) 3508 TOTAL SCORE: 14791 Bonus ------- High Alert Combat Kills 8 Entered DSFs 500 Met Warlord at Base 500 MAIN.C Attacked Warlord 500 Met Warlord at Research 2000 Cogmind --------- Core Integrity 0/1600 Matter 208/300 Energy 84/100 System Corruption 5% Temperature Cool (0) Movement Core (100) Ox1 Location -1/Access Parts ------- > --- POWER (2) -------- (None) > --- PROPULSION (8) --- (None) > --- UTILITY (13) ----- Enhanced Optical Array Advanced Signal Interpreter > --- WEAPON (2) ------- Vortex Lance > --- INVENTORY (5) ---- Advanced Heat Sink Peak State ------------ > --- POWER ------------ Improved Fusion Compressor > --- PROPULSION ------- Improved VTOL Module Improved VTOL Module Improved Cesium-ion Thruster Advanced Surge Thruster Advanced Surge Thruster Field Propulsion Array > --- UTILITY ---------- Advanced Heat Sink Small Storage Unit Enhanced Optical Array Advanced Sensor Array Advanced Signal Interpreter Advanced Melee Analysis Suite Improved Reaction Control System Improved Hacking Suite Advanced Hacking Suite Experimental Hacking Suite Improved System Shield Experimental System Shield > --- WEAPON ----------- Power Sword Vortex Lance > --- INVENTORY -------- Micro Nuclear Core Cesium-ion Thruster Improved VTOL Module Improved Cesium-ion Thruster Q-thruster Advanced Cooling System Improved Propulsion Shielding Vortex Lance [Rating: 129] Favorites ----------- Power Micro Nuclear Core Engine Light Ion Engine Power Core Micro Nuclear Core Reactor Light Quantum Reactor Propulsion Improved VTOL Module Leg Aluminum Leg Flight Unit Improved VTOL Module Utility Hacking Suite Device Advanced Sensor Array Storage Small Storage Unit Processor Signal Interpreter Hackware Hacking Suite Protection Improved Propulsion Shielding Weapon EM Shotgun Energy Gun EM Shotgun Launcher Mini Grenade Launcher Slashing Weapon Power Sword Piercing Weapon Heavy Pick Build | -11 -10 -10 -9 -9 -8 -7 -7 -7 -7 -6 -5 -5 -5 -4 -4 -4 -4 -3 -3 -2 -2 -1 ------- Run | Yrd Mat Min Mat Min Mat Fac Was Fac DSF Fac Fac Upp Upp Fac Upp Upp War Pro Res Res Tes Acc Slots Evolved 18 | . . . 2 . 2 2 . . . 2 2 . . 2 . . . . 2 2 . 2 Power 1 | . . . . . . . . . . . . . . 1 . . . . . . . . Propulsion 6 | . . . 1 . 1 1 . . . . . . . . . . . . 1 1 . 1 Utility 11 | . . . 1 . 1 1 . . . 2 2 . . 1 . . . . 1 1 . 1 Weapon . | . . . . . . . . . . . . . . . . . . . . . . . Parts Attached 119 | . 5 . 11 3 21 6 1 1 . 12 4 4 . 3 2 1 1 1 10 12 7 14 Power 14 | . 2 . 1 . 2 . . . . . . . . 2 . . . 1 1 1 1 3 Engine 7 | . 2 . 1 . 1 . . . . . . . . 1 . . . . . 1 . 1 Core 6 | . . . . . 1 . . . . . . . . 1 . . . 1 1 . 1 1 Reactor 1 | . . . . . . . . . . . . . . . . . . . . . . 1 Propulsion 32 | . . . 4 2 10 4 1 . . 2 . . . . . . . . 3 1 3 2 Treads . | . . . . . . . . . . . . . . . . . . . . . . . Leg 10 | . . . 4 2 4 . . . . . . . . . . . . . . . . . Wheel . | . . . . . . . . . . . . . . . . . . . . . . . Hover . | . . . . . . . . . . . . . . . . . . . . . . . Flight 22 | . . . . . 6 4 1 . . 2 . . . . . . . . 3 1 3 2 Utility 45 | . 1 . 3 . 4 2 . 1 . 7 4 2 . 1 . 1 . . 5 8 2 4 Device 8 | . . . . . . . . 1 . . . 1 . 1 . . . . 1 3 . 1 Storage 3 | . 1 . . . 1 . . . . . . . . . . . . . . . . 1 Processor 7 | . . . 2 . . 1 . . . . 1 . . . . 1 . . . 2 . . Hackware 12 | . . . . . . . . . . 3 1 . . . . . . . 3 3 1 1 Protection 15 | . . . 1 . 3 1 . . . 4 2 1 . . . . . . 1 . 1 1 Artifact . | . . . . . . . . . . . . . . . . . . . . . . . Weapon 28 | . 2 . 3 1 5 . . . . 3 . 2 . . 2 . 1 . 1 2 1 5 Energy Gun 10 | . 2 . 3 1 4 . . . . . . . . . . . . . . . . . Energy Cannon . | . . . . . . . . . . . . . . . . . . . . . . . Ballistic Gun . | . . . . . . . . . . . . . . . . . . . . . . . Ballistic Cannon . | . . . . . . . . . . . . . . . . . . . . . . . Launcher 7 | . . . . . 1 . . . . 2 . 1 . . 1 . . . 1 . . 1 Special Weapon . | . . . . . . . . . . . . . . . . . . . . . . . Impact Weapon . | . . . . . . . . . . . . . . . . . . . . . . . Slashing Weapon 3 | . . . . . . . . . . . . . . . . . . . . 2 . 1 Piercing Weapon 8 | . . . . . . . . . . 1 . 1 . . 1 . 1 . . . 1 3 Special Melee Weapon . | . . . . . . . . . . . . . . . . . . . . . . . Unidentified Prototypes 6 | . . . . . 2 1 . . . . . . . . . . 1 . 1 1 . . Corrupted Parts 3 | . . . 1 1 1 . . . . . . . . . . . . . . . . . System Corruption 10 | . . . 4 3 3 . . . . . . . . . . . . . . . . . Parts Lost 47 | . . . 2 3 8 1 . . . . 1 1 . . . 1 . 1 1 3 3 22 Power 8 | . . . . . 1 . . . . . . . . . . 1 . 1 . 1 1 3 Propulsion 15 | . . . 1 1 4 1 . . . . . . . . . . . . . . 1 7 Utility 18 | . . . . . 1 . . . . . 1 1 . . . . . . 1 2 1 11 Weapon 6 | . . . 1 2 2 . . . . . . . . . . . . . . . . 1 Highest Loss Streak 21 | . . . 2 1 3 1 . . . . 1 1 . . . 1 . 1 1 2 1 21 To Critical Strikes . | . . . . . . . . . . . . . . . . . . . . . . . Average Slot Usage (%) 87 | . 85 85 93 99 83 78 84 84 84 90 85 90 94 85 89 90 93 94 90 87 90 67 Engine 4 | . 14 14 11 11 8 . . . . . . . . 1 5 4 2 5 . 1 . . Core 4 | . . . . . . 7 7 7 7 6 5 5 5 5 5 5 5 5 8 6 6 4 Leg 8 | . 28 28 32 33 17 . . . . . . . . . . . . . . . . . Flight 20 | . . . . . 14 35 38 38 38 33 29 29 29 26 26 26 26 26 25 26 26 18 Device 4 | . . . . . . . . 4 7 . . 1 5 10 10 10 10 10 8 6 11 6 Storage 6 | . 14 14 11 11 9 7 7 7 7 6 5 5 5 5 5 5 5 5 4 4 4 2 Processor 11 | . . . 13 11 9 12 15 15 15 13 11 11 11 10 10 12 15 15 14 14 13 11 Hackware 8 | . . . . . . . . . . 6 14 11 11 10 10 10 10 10 12 17 21 16 Protection 8 | . . . 2 11 14 14 15 9 7 16 11 17 17 10 10 10 10 10 9 5 . 4 Energy Gun 6 | . 28 28 22 21 9 . . . . . . . . . . . 1 . . . . . Piercing Weapon 2 | . . . . . . . . . . 5 5 5 5 5 4 5 5 5 4 . 2 . Naked Turns . | . . . . . . . . . . . . . . . . . . . . . . . Heaviest Build 36 | 12 19 19 22 22 24 16 16 16 15 22 26 26 25 25 25 25 27 25 31 30 29 36 Greatest Support 50 | 20 20 20 33 33 50 25 25 25 25 26 26 26 26 26 26 26 26 26 36 42 42 47 Greatest Overweight (x) 1 | . . . . . . . . . . . . . . . . . 1 . . . . 1 Average Overweight (x) . | . . . . . . . . . . . . . . . . . . . . . . . Largest Inventory Capacity 10 | . 10 10 10 10 10 8 8 8 8 8 8 8 8 8 8 8 8 8 8 8 8 8 Average Capacity 8 | . 8 10 10 10 9 8 8 8 8 8 8 8 8 8 8 8 8 8 8 8 8 6 Most Carried 10 | . 8 8 10 10 10 8 7 8 8 8 8 8 8 8 8 8 8 8 8 8 8 4 Average Carried 7 | . 7 8 8 9 7 7 7 7 7 7 7 7 8 7 8 8 7 7 7 7 6 2 Final Capacity 10 | 8 10 10 10 10 8 8 8 8 8 8 8 8 8 8 8 8 8 8 8 8 8 5 Final Carried 10 | 6 8 8 9 10 5 8 7 8 8 7 7 8 8 8 8 8 8 7 8 8 5 1 Class Distribution -------------------- 27% | Hacker-Scout 15% | Hacker-Sprinter 14% | Sprinter 14% | Mutant 13% | Scavenger-Mutant 9% | Wizard-Scout Dominant Class ---------------- Mutant | -10/Materials Mutant | -10/Mines Scavenger-Mutant | -9/Materials Scavenger-Mutant | -9/Mines Scavenger-Mutant | -8/Materials Sprinter | -7/Factory Sprinter | -7/Waste Sprinter | -7/Factory Sprinter | -7/DSF Sprinter | -6/Factory Hacker-Sprinter | -5/Factory Hacker-Sprinter | -5/Upper Caves Hacker-Scout | -5/Upper Caves Hacker-Scout | -4/Factory Hacker-Scout | -4/Upper Caves Hacker-Scout | -4/Upper Caves Hacker-Scout | -4/Warlord Hacker-Scout | -3/Proximity Caves Hacker-Scout | -3/Research Hacker-Sprinter | -2/Research Wizard-Scout | -2/Testing Wizard-Scout | -1/Access Resources | -11 -10 -10 -9 -9 -8 -7 -7 -7 -7 -6 -5 -5 -5 -4 -4 -4 -4 -3 -3 -2 -2 -1 ----------- Run | Yrd Mat Min Mat Min Mat Fac Was Fac DSF Fac Fac Upp Upp Fac Upp Upp War Pro Res Res Tes Acc Matter Collected 1613 | 200 17 . 143 38 80 . . . 81 17 117 34 134 41 86 39 26 . 110 105 135 210 Remotely . | . . . . . . . . . . . . . . . . . . . . . . . Salvage Created 1932 | . 181 . 461 138 415 . . . . 28 117 . 134 41 32 . . . 187 47 57 94 Parts 137 | . 14 . 27 9 27 . . . . 6 6 . 6 4 5 . . . 16 1 3 13 Haulers Intercepted 1 | . 1 . . . . . . . . . . . . . . . . . . . . . Recyclers Shooed 4 | . 1 . 2 . . . . . . . 1 . . . . . . . . . . . Parts Field Recycled . | . . . . . . . . . . . . . . . . . . . . . . . Retrieved Matter . | . . . . . . . . . . . . . . . . . . . . . . . Parts Self-Destructed 3 | . . . . . . . . . . . . . . . 3 . . . . . . . Prevented . | . . . . . . . . . . . . . . . . . . . . . . . Kills | -11 -10 -10 -9 -9 -8 -7 -7 -7 -7 -6 -5 -5 -5 -4 -4 -4 -4 -3 -3 -2 -2 -1 ------- Run | Yrd Mat Min Mat Min Mat Fac Was Fac DSF Fac Fac Upp Upp Fac Upp Upp War Pro Res Res Tes Acc Combat Hostiles Destroyed 38 | . 2 . 11 5 11 . . . . 4 . . . . 4 . . . 1 . . . Melee 1 | . . . . . . . . . . . . . . . . . . . 1 . . . Guns 13 | . 2 . 6 2 3 . . . . . . . . . . . . . . . . . AOE 22 | . . . 4 2 8 . . . . 4 . . . . 4 . . . . . . . Classes Destroyed 14 | . 4 . 3 1 2 . . . . 1 . . 1 . . . . . 1 . 1 . Worker 5 | . 1 . . . . . . . . . 2 . . 1 . . . . . . . 1 Builder 2 | . . . . . 2 . . . . . . . . . . . . . . . . . Tunneler 6 | . . . . . . . . . . 1 2 . . 1 . . . . . . . 2 Hauler 1 | . 1 . . . . . . . . . . . . . . . . . . . . . Operator 3 | . . . . . . . . . . . . . . . . . . . 2 . . 1 Watcher 7 | . 1 . 2 . . . . . . . 1 . . . . . . . 2 1 . . Swarmer 18 | . . . 3 3 4 . . . . 4 . . . . 4 . . . . . . . Grunt 14 | . 2 . 6 1 4 . . . . . . . . . . . . . 1 . . . Brawler 1 | . . . . 1 . . . . . . . . . . . . . . . . . . Duelist 1 | . . . 1 . . . . . . . . . . . . . . . . . . . Researcher 1 | . . . . . . . . . . . . . . . . . . . . . 1 . Sentry 3 | . . . 1 . 2 . . . . . . . . . . . . . . . . . Hunter 1 | . . . . . 1 . . . . . . . . . . . . . . . . . Samaritan 3 | . . . . . . . . . . . . . 3 . . . . . . . . . Best Kill Streak 7 | . 2 . 7 3 5 . . . . 4 4 . . 2 4 . . . 2 1 1 3 Combat Bots Only 6 | . 1 . 6 3 4 . . . . 4 . . . . 4 . . . 1 . . . Max Kills in Single Turn 3 | . 1 . 3 3 3 . . . . 3 1 . 1 1 2 . . . 1 1 1 1 Gunslinging . | . . . . . . . . . . . . . . . . . . . . . . . Exploded 3 | . . . 3 2 3 . . . . 3 . . . . 2 . . . . . . . Melee 1 | . . . . . . . . . . . . . . . . . . . 1 . . . Uniques/NPCs Destroyed . | . . . . . . . . . . . . . . . . . . . . . . . Combat | -11 -10 -10 -9 -9 -8 -7 -7 -7 -7 -6 -5 -5 -5 -4 -4 -4 -4 -3 -3 -2 -2 -1 -------- Run | Yrd Mat Min Mat Min Mat Fac Was Fac DSF Fac Fac Upp Upp Fac Upp Upp War Pro Res Res Tes Acc Hostile Shots Fired 667 | . 6 . 59 18 70 24 . . 3 38 40 13 . 8 14 6 4 14 20 31 56 243 Missed 314 | . 1 . 14 7 26 13 . . 2 20 21 4 . 6 10 4 3 6 9 11 27 130 Damage Taken 6932 | . 67 . 636 192 656 133 . . 14 254 476 180 . 39 67 47 27 155 214 463 604 2708 Core 2494 | . 11 . 46 56 124 24 . . . 64 135 50 . . 16 24 . 23 67 144 99 1611 Absorbed by Shields 38 | . . . . . . . . . . . 38 . . . . . . . . . . . Redirected to Shielding 427 | . . . 2 13 14 10 . . . 25 32 . . 24 8 . . . 13 31 . 255 Regen/Repaired (Parts) 496 | . . . . . . . . . . 106 . . . . . . 40 . . . . 350 Core Remaining (%) 88 | 100 . 95 . 74 77 . . . 96 92 . . 81 . . . . 94 94 . 83 . Volleys Fired 81 | . 14 . 30 6 22 . . . . 4 . 2 . . 3 . . . . . . . Largest 2 | . 2 . 2 2 2 . . . . 1 . 1 . . 1 . . . . . . . Hottest 114 | . 90 . 90 90 114 . . . . 30 . 30 . . 30 . . . . . . . Shots Fired 147 | . 28 . 60 12 38 . . . . 4 . 2 . . 3 . . . . . . . Gun 134 | . 28 . 60 12 34 . . . . . . . . . . . . . . . . . Cannon . | . . . . . . . . . . . . . . . . . . . . . . . Launcher 13 | . . . . . 4 . . . . 4 . 2 . . 3 . . . . . . . Special . | . . . . . . . . . . . . . . . . . . . . . . . Kinetic . | . . . . . . . . . . . . . . . . . . . . . . . Thermal 11 | . 9 . . . 2 . . . . . . . . . . . . . . . . . Explosive 13 | . . . . . 4 . . . . 4 . 2 . . 3 . . . . . . . Electromagnetic 123 | . 19 . 60 12 32 . . . . . . . . . . . . . . . . . Robot Hit Streak 7 | . 4 . 7 7 7 . . . . . . . . . . . . . . . . . Robot Miss Streak 6 | . 3 . 6 3 3 . . . . 3 . . . . 6 . . . . . . . Penetration Max . | . . . . . . . . . . . . . . . . . . . . . . . Secondary Targets 3 | . . . 3 . . . . . . . . . . . . . . . . . . . Max Gunslinging Chain 1 | . . . 1 . . . . . . . . . . . . . . . . . . . Shots Hit Robots 127 | . 16 . 44 8 29 . . . . 1 10 . 3 2 1 . . . 7 1 1 4 Core Hits 87 | . 9 . 25 5 23 . . . . 6 4 . 2 1 4 . . . 4 1 . 3 Critical Kills . | . . . . . . . . . . . . . . . . . . . . . . . Critical Parts Destroyed . | . . . . . . . . . . . . . . . . . . . . . . . Critical Strikes 1 | . . . . . . . . . . . . . . . . . . . 1 . . . Sunder 1 | . . . . . . . . . . . . . . . . . . . 1 . . . Melee Attacks 114 | . . . . . . . . . . 7 20 9 3 2 6 . . 5 21 15 15 11 Impact . | . . . . . . . . . . . . . . . . . . . . . . . Slashing 32 | . . . . . . . . . . . . . . . . . . . . 15 11 6 Piercing 47 | . . . . . . . . . . 7 20 9 3 2 6 . . . . . . . Entropic 35 | . . . . . . . . . . . . . . . . . . 5 21 . 4 5 Sneak Attacks 17 | . . . . . . . . . . 1 5 . 3 2 . . . . 1 . 1 4 Combat Hostiles . | . . . . . . . . . . . . . . . . . . . . . . . Follow-up Attacks . | . . . . . . . . . . . . . . . . . . . . . . . Damage Inflicted 5889 | . 230 . 799 177 1107 . . . . 477 599 . 255 178 431 . . . 881 55 203 497 Guns 1368 | . 210 . 617 135 406 . . . . . . . . . . . . . . . . . Cannons . | . . . . . . . . . . . . . . . . . . . . . . . Explosions 1710 | . 20 . 182 42 700 . . . . 382 . . . . 384 . . . . . . . Melee 2790 | . . . . . . . . . . 95 599 . 255 178 47 . . . 881 55 203 477 Ramming 21 | . . . . . 1 . . . . . . . . . . . . . . . . 20 Kinetic . | . . . . . . . . . . . . . . . . . . . . . . . Thermal 586 | . 57 . 182 42 305 . . . . . . . . . . . . . . . . . Explosive 1161 | . . . . . 395 . . . . 382 . . . . 384 . . . . . . . Electromagnetic 1331 | . 173 . 617 135 406 . . . . . . . . . . . . . . . . . Impact . | . . . . . . . . . . . . . . . . . . . . . . . Slashing 331 | . . . . . . . . . . . . . . . . . . . . 55 . 276 Piercing 1174 | . . . . . . . . . . 95 599 . 255 178 47 . . . . . . . Entropic 1285 | . . . . . . . . . . . . . . . . . . . 881 . 203 201 Highest Corruption 9 | . 4 4 4 7 3 . 9 9 9 5 . . . . . . . . . . . 5 Average Corruption 4 | . 3 4 4 5 3 . 9 9 9 5 . . . . . . . . . . . 2 Corruption Purged . | . . . . . . . . . . . . . . . . . . . . . . . Corruption Blocked 10 | . . . . . . . . . 8 . . . . . . . . . . . 2 . Effects 17 | . . . 3 7 3 . . 1 . 2 . . . . . . . . . . . 1 Message Errors 3 | . . . 1 1 . . . 1 . . . . . . . . . . . . . . Matter Fused 4 | . . . 1 2 . . . . . 1 . . . . . . . . . . . . Heat Flow Errors 1 | . . . . 1 . . . . . . . . . . . . . . . . . . Energy Discharges 2 | . . . . . . . . . . 1 . . . . . . . . . . . 1 Parts Rejected 1 | . . . . . 1 . . . . . . . . . . . . . . . . . Data Loss (minor) 3 | . . . . 1 2 . . . . . . . . . . . . . . . . . Data Loss (major) 1 | . . . 1 . . . . . . . . . . . . . . . . . . . Misfires 1 | . . . . 1 . . . . . . . . . . . . . . . . . . Weapon Failures 1 | . . . . 1 . . . . . . . . . . . . . . . . . . Overload Shots . | . . . . . . . . . . . . . . . . . . . . . . . Overflow Damage 930 | . . . . 13 143 . . . . 55 130 . 108 57 8 . . . 117 . 143 156 Projectiles . | . . . . . . . . . . . . . . . . . . . . . . . Explosions 164 | . . . . 13 143 . . . . . . . . . 8 . . . . . . . Melee 766 | . . . . . . . . . . 55 130 . 108 57 . . . . 117 . 143 156 Knockbacks . | . . . . . . . . . . . . . . . . . . . . . . . Impact . | . . . . . . . . . . . . . . . . . . . . . . . Kinetic . | . . . . . . . . . . . . . . . . . . . . . . . Secondary . | . . . . . . . . . . . . . . . . . . . . . . . Self-Inflicted Damage 290 | . 13 . 34 38 61 . . . . . . 20 . . . . . . . . . 124 Shots 7 | . 1 . 1 1 2 . . . . . . 1 . . . . . . . . . 1 Rammed 2 | . . . . . . . . . . . . . . . . . . . . . . 2 Targets Rammed 3 | . . . . . 1 . . . . . . . . . . . . . . . . 2 Kicked 1 | . . . . . 1 . . . . . . . . . . . . . . . . . Crushed . | . . . . . . . . . . . . . . . . . . . . . . . Highest Temperature 225 | . 168 . 189 225 113 69 11 10 . 21 2 20 20 2 26 7 1 23 . 38 5 19 Average Temperature 29 | . 59 . 65 55 41 27 4 4 . 7 2 5 10 2 7 2 1 5 . 16 4 6 Received Heat Transfer 669 | . 30 . 114 45 198 45 . . 9 42 6 9 . . 27 12 . 42 18 18 . 54 Siege Activations . | . . . . . . . . . . . . . . . . . . . . . . . Robots Corrupted 2 | . . . 1 1 . . . . . . . . . . . . . . . . . . Combat Hostiles 2 | . . . 1 1 . . . . . . . . . . . . . . . . . . Parts Fried 6 | . 1 . 3 . 2 . . . . . . . . . . . . . . . . . Impact Corruptions . | . . . . . . . . . . . . . . . . . . . . . . . Robots Melted . | . . . . . . . . . . . . . . . . . . . . . . . Combat Hostiles . | . . . . . . . . . . . . . . . . . . . . . . . Parts Melted 2 | . . . . 1 1 . . . . . . . . . . . . . . . . . Heat Transferred 661 | . 161 . 150 100 250 . . . . . . . . . . . . . . . . . Parts Sabotaged . | . . . . . . . . . . . . . . . . . . . . . . . Parts Stolen . | . . . . . . . . . . . . . . . . . . . . . . . Parts Stripped . | . . . . . . . . . . . . . . . . . . . . . . . Power Chain Reactions 6 | . 1 . 2 1 2 . . . . . . . . . . . . . . . . . Alert | -11 -10 -10 -9 -9 -8 -7 -7 -7 -7 -6 -5 -5 -5 -4 -4 -4 -4 -3 -3 -2 -2 -1 ------- Run | Yrd Mat Min Mat Min Mat Fac Was Fac DSF Fac Fac Upp Upp Fac Upp Upp War Pro Res Res Tes Acc Peak Influence 619 | . 144 . 331 281 565 592 248 173 121 558 571 . . 120 . . . . 350 619 384 532 Initial 348 | . . . . 129 105 252 203 173 121 63 199 . . 95 . . . . 163 45 348 222 Average 232 | . 84 . 179 247 296 359 218 173 121 181 289 . . 113 . . . . 174 334 321 247 Maximum Alert Level 2 | . . . 1 1 2 2 1 . . 2 2 . . . . . . . 1 2 1 2 Low Security (%) 43 | . 100 100 67 18 29 . . 100 100 65 22 . . 100 . . . . 53 18 . 34 Level 1 44 | . . . 32 81 60 63 100 . . 26 51 . . . . . . . 46 38 100 49 Level 2 12 | . . . . . 9 36 . . . 8 26 . . . . . . . . 43 . 16 Level 3 . | . . . . . . . . . . . . . . . . . . . . . . . Level 4 . | . . . . . . . . . . . . . . . . . . . . . . . Level 5 . | . . . . . . . . . . . . . . . . . . . . . . . High Security . | . . . . . . . . . . . . . . . . . . . . . . . Max Security . | . . . . . . . . . . . . . . . . . . . . . . . Squads Dispatched 19 | . 2 . 1 . 3 2 . 1 . 2 2 . . 2 . . . . 1 . 2 1 Investigation 6 | . 1 . . . . 1 . 1 . . . . . 1 . . . . 1 . 1 . Extermination 2 | . . . . . . . . . . 1 1 . . . . . . . . . . . Reinforcement 11 | . 1 . 1 . 3 1 . . . 1 1 . . 1 . . . . . . 1 1 Assault . | . . . . . . . . . . . . . . . . . . . . . . . Garrison . | . . . . . . . . . . . . . . . . . . . . . . . Intercept . | . . . . . . . . . . . . . . . . . . . . . . . Searches Triggered 1 | . . . . . . . . . . 1 . . . . . . . . . . . . Construction Impeded 1 | . . . . . 1 . . . . . . . . . . . . . . . . . Haulers Reinforced . | . . . . . . . . . . . . . . . . . . . . . . . Active Scanning Responses . | . . . . . . . . . . . . . . . . . . . . . . . Cargo Convoy Interrupts . | . . . . . . . . . . . . . . . . . . . . . . . Stealth | -11 -10 -10 -9 -9 -8 -7 -7 -7 -7 -6 -5 -5 -5 -4 -4 -4 -4 -3 -3 -2 -2 -1 --------- Run | Yrd Mat Min Mat Min Mat Fac Was Fac DSF Fac Fac Upp Upp Fac Upp Upp War Pro Res Res Tes Acc Distress Signals 11 | . 1 . 1 . 1 . . . . 1 . . . . . . . . . 6 . 1 Communications Jammed . | . . . . . . . . . . . . . . . . . . . . . . . Distress Signals . | . . . . . . . . . . . . . . . . . . . . . . . Times Spotted 298 | . 5 . 16 5 30 21 6 . 9 31 28 7 . 3 11 3 7 5 14 31 10 56 Peak Tracking Total 27 | . 3 . 6 2 12 9 6 . 10 14 9 4 . 2 7 3 12 3 5 9 8 27 Tactical Retreats 43 | . . . . 1 2 4 . . . 5 5 2 . . 4 . . 1 3 6 2 8 Traps | -11 -10 -10 -9 -9 -8 -7 -7 -7 -7 -6 -5 -5 -5 -4 -4 -4 -4 -3 -3 -2 -2 -1 ------- Run | Yrd Mat Min Mat Min Mat Fac Was Fac DSF Fac Fac Upp Upp Fac Upp Upp War Pro Res Res Tes Acc Traps Triggered 12 | . 2 . . . . 1 . . 2 1 1 . . 1 . . . . 2 . . 2 Indirectly . | . . . . . . . . . . . . . . . . . . . . . . . Trap Hack Attempts . | . . . . . . . . . . . . . . . . . . . . . . . Triggered . | . . . . . . . . . . . . . . . . . . . . . . . Disarmed . | . . . . . . . . . . . . . . . . . . . . . . . Reprogrammed . | . . . . . . . . . . . . . . . . . . . . . . . Reused . | . . . . . . . . . . . . . . . . . . . . . . . Traps Extracted . | . . . . . . . . . . . . . . . . . . . . . . . Installed . | . . . . . . . . . . . . . . . . . . . . . . . Triggered 14 | . . . . . . . . . . . . . . . 3 . 11 . . . . . Machines | -11 -10 -10 -9 -9 -8 -7 -7 -7 -7 -6 -5 -5 -5 -4 -4 -4 -4 -3 -3 -2 -2 -1 ---------- Run | Yrd Mat Min Mat Min Mat Fac Was Fac DSF Fac Fac Upp Upp Fac Upp Upp War Pro Res Res Tes Acc Machines Disabled 4 | . . . . . . . . . . . . . . . . . . . . . 2 2 Max in Single Turn 1 | . . . . . . . . . . . . . . . . . . . . . 1 1 Garrison Access 10 | . . . . . 1 1 . . . 1 1 . . 1 . . . . 1 1 1 2 Energy Cycler 1 | . . . . . . . . . . . . . . . . . . . . . . 1 Machines Repaired . | . . . . . . . . . . . . . . . . . . . . . . . Machines Dismantled . | . . . . . . . . . . . . . . . . . . . . . . . Machines Sabotaged . | . . . . . . . . . . . . . . . . . . . . . . . Overloaded Fab Kills . | . . . . . . . . . . . . . . . . . . . . . . . Hacking | -11 -10 -10 -9 -9 -8 -7 -7 -7 -7 -6 -5 -5 -5 -4 -4 -4 -4 -3 -3 -2 -2 -1 --------- Run | Yrd Mat Min Mat Min Mat Fac Was Fac DSF Fac Fac Upp Upp Fac Upp Upp War Pro Res Res Tes Acc Machines Accessed 75 | . 3 . 4 . 4 10 . 1 . 9 6 . . 1 1 . 9 . 9 5 6 7 Terminals 43 | . 3 . 3 . 3 7 . 1 . 4 4 . . . 1 . . . 6 3 4 4 Fabricators 4 | . . . . . . 1 . . . 1 . . . . . . . . 1 . 1 . Repair Stations 2 | . . . . . . . . . . 1 . . . . . . . . . . . 1 Recycling Units 2 | . . . . . . . . . . 1 1 . . . . . . . . . . . Scanalyzers 3 | . . . 1 . . 1 . . . . . . . . . . . . 1 . . . Garrison Access 12 | . . . . . 1 1 . . . 2 1 . . 1 . . . . 1 2 1 2 Total Hacks 196 | . 8 . 17 . 9 19 . 3 . 15 20 . . 1 1 . 19 . 20 12 30 22 Successful 130 | . 4 . 8 . 8 9 . 1 . 9 15 . . 1 1 . 19 . 17 4 20 14 Failed 66 | . 4 . 9 . 1 10 . 2 . 6 5 . . . . . . . 3 8 10 8 Catastrophic 9 | . . . . . . 4 . . . 2 . . . . . . . . . . 1 2 Database Lockouts . | . . . . . . . . . . . . . . . . . . . . . . . Manual 88 | . 8 . 13 . 7 12 . . . 3 14 . . . . . . . 9 2 17 3 Terminals 133 | . 8 . 15 . 8 14 . 3 . 7 18 . . . 1 . . . 14 8 27 10 Fabricators 9 | . . . . . . 2 . . . 2 . . . . . . . . 3 . 2 . Repair Stations 9 | . . . . . . . . . . 2 . . . . . . . . . . . 7 Recycling Units 3 | . . . . . . . . . . 2 1 . . . . . . . . . . . Scanalyzers 6 | . . . 2 . . 2 . . . . . . . . . . . . 2 . . . Garrison Access 17 | . . . . . 1 1 . . . 2 1 . . 1 . . . . 1 4 1 5 Terminal Hacks 62 | . 2 . 2 . 1 1 . 1 . 2 8 . . . 1 . 19 . 6 3 11 5 Record 14 | . . . . . . . . . . . . . . . 1 . 12 . 1 . . . Part Schematic 2 | . 1 . . . . . . . . . . . . . . . . . . . 1 . Robot Analysis 1 | . 1 . . . . . . . . . . . . . . . . . . . . . Prototype ID Bank 8 | . . . . . . . . . . . 1 . . . . . 6 . . . 1 . Open Door 2 | . . . . . . . . . . . . . . . . . 1 . 1 . . . Open DSF 3 | . . . . . . . . 1 . 1 . . . . . . . . 1 . . . Level Access Points 2 | . . . . . . . . . . . . . . . . . . . . . 1 1 Machine Index 2 | . . . . . . . . . . . . . . . . . . . 1 . 1 . Alert Level 12 | . . . 2 . . 1 . . . 1 2 . . . . . . . 1 1 3 1 Unreport Threat 8 | . . . . . . . . . . . 3 . . . . . . . 1 . 1 3 Locate Traps 6 | . . . . . 1 . . . . . 2 . . . . . . . . 2 1 . Zone Layout 2 | . . . . . . . . . . . . . . . . . . . . . 2 . Fabricator Hacks 8 | . . . . . . 2 . . . 2 . . . . . . . . 2 . 2 . Load Schematic 4 | . . . . . . 1 . . . 1 . . . . . . . . 1 . 1 . Build 4 | . . . . . . 1 . . . 1 . . . . . . . . 1 . 1 . Repair Station Hacks 8 | . . . . . . . . . . 2 . . . . . . . . . . . 6 Scan Component 4 | . . . . . . . . . . 1 . . . . . . . . . . . 3 Repair 4 | . . . . . . . . . . 1 . . . . . . . . . . . 3 Recycling Unit Hacks 3 | . . . . . . . . . . 2 1 . . . . . . . . . . . Process 1 | . . . . . . . . . . 1 . . . . . . . . . . . . Retrieve Matter 2 | . . . . . . . . . . 1 1 . . . . . . . . . . . Scanalyzer 6 | . . . 2 . . 2 . . . . . . . . . . . . 2 . . . Insert Component 3 | . . . 1 . . 1 . . . . . . . . . . . . 1 . . . Analyze 3 | . . . 1 . . 1 . . . . . . . . . . . . 1 . . . Garrison Access Hacks 10 | . . . . . 1 1 . . . 1 1 . . 1 . . . . 1 1 1 2 Seal Access 10 | . . . . . 1 1 . . . 1 1 . . 1 . . . . 1 1 1 2 Unauthorized Hacks 33 | . 2 . 4 . 6 3 . . . . 5 . . . . . . . 6 . 6 1 Terminals 33 | . 2 . 4 . 6 3 . . . . 5 . . . . . . . 6 . 6 1 Track 10 | . . . 1 . 3 1 . . . . 1 . . . . . . . 2 . 2 . Botnet 19 | . 2 . 2 . 3 2 . . . . 3 . . . . . . . 4 . 3 . Disrupt 2 | . . . . . . . . . . . 1 . . . . . . . . . . 1 Operators 2 | . . . 1 . . . . . . . . . . . . . . . . . 1 . Fabricators . | . . . . . . . . . . . . . . . . . . . . . . . Repair Stations . | . . . . . . . . . . . . . . . . . . . . . . . Recycling Units . | . . . . . . . . . . . . . . . . . . . . . . . Scanalyzers . | . . . . . . . . . . . . . . . . . . . . . . . Garrison Access . | . . . . . . . . . . . . . . . . . . . . . . . Data Cores Recovered 3 | . . . . . . . . . . . . . . . . . . . 2 . . 1 Used 2 | . . . . . . . . . . . . . . . . . . . 1 . . 1 Hacking Detections 50 | . 3 . 4 . 3 8 . 1 . 5 5 . . . . . . . 6 4 5 6 Full Trace Events 4 | . . . . . . 1 . 1 . . . . . . . . . . 1 . 1 . Feedback Events . | . . . . . . . . . . . . . . . . . . . . . . . Feedback Blocked . | . . . . . . . . . . . . . . . . . . . . . . . Robot Schematics Acquired 1 | . . . . . . . . . . . . . . . . . . . . . 1 . Robots Built . | . . . . . . . . . . . . . . . . . . . . . . . Authchips . | . . . . . . . . . . . . . . . . . . . . . . . Time . | . . . . . . . . . . . . . . . . . . . . . . . Total Robot Build Rating . | . . . . . . . . . . . . . . . . . . . . . . . Part Schematics Acquired 6 | . 1 . 1 . . 1 . . . . . . . . . . . . 1 . 2 . Parts Built 6 | . . . . . . 2 . . . 1 . . . . . . . . 1 . 2 . Authchips 1 | . . . . . . . . . . 1 . . . . . . . . . . . . Time 269 | . . . . . . 51 . . . 116 . . . . . . . . 44 . 58 . Total Part Build Rating 23 | . . . . . . 2 . . . 3 . . . . . . . . 4 . 14 . Parts Repaired 4 | . . . . . . . . . . 1 . . . . . . . . . . . 3 Time 59 | . . . . . . . . . . 19 . . . . . . . . . . . 40 Parts Recycled . | . . . . . . . . . . . . . . . . . . . . . . . Recycled Matter 5 | . . . . . . . . . . 5 . . . . . . . . . . . . Retrieved Matter . | . . . . . . . . . . . . . . . . . . . . . . . Retrieved Components . | . . . . . . . . . . . . . . . . . . . . . . . Parts Scanalyzed 3 | . . . 1 . . 1 . . . . . . . . . . . . 1 . . . Part Schematics Acquired 3 | . . . 1 . . 1 . . . . . . . . . . . . 1 . . . Parts Damaged . | . . . . . . . . . . . . . . . . . . . . . . . Bothacking | -11 -10 -10 -9 -9 -8 -7 -7 -7 -7 -6 -5 -5 -5 -4 -4 -4 -4 -3 -3 -2 -2 -1 ------------ Run | Yrd Mat Min Mat Min Mat Fac Was Fac DSF Fac Fac Upp Upp Fac Upp Upp War Pro Res Res Tes Acc Used RIF Installer . | . . . . . . . . . . . . . . . . . . . . . . . Robots Hacked . | . . . . . . . . . . . . . . . . . . . . . . . Non-combat . | . . . . . . . . . . . . . . . . . . . . . . . Combat . | . . . . . . . . . . . . . . . . . . . . . . . Robot Hacks Applied . | . . . . . . . . . . . . . . . . . . . . . . . Relay Couplers Released . | . . . . . . . . . . . . . . . . . . . . . . . Fabnet Peak Effective % . | . . . . . . . . . . . . . . . . . . . . . . . Robots Rewired . | . . . . . . . . . . . . . . . . . . . . . . . Allies Hacked . | . . . . . . . . . . . . . . . . . . . . . . . Hacks Repelled . | . . . . . . . . . . . . . . . . . . . . . . . Allies | -11 -10 -10 -9 -9 -8 -7 -7 -7 -7 -6 -5 -5 -5 -4 -4 -4 -4 -3 -3 -2 -2 -1 -------- Run | Yrd Mat Min Mat Min Mat Fac Was Fac DSF Fac Fac Upp Upp Fac Upp Upp War Pro Res Res Tes Acc Total Allies . | . . . . . . . . . . . . . . . . . . . . . . . Largest Group . | . . . . . . . . . . . . . . . . . . . . . . . Highest-Rated Group . | . . . . . . . . . . . . . . . . . . . . . . . Highest-Rated Ally . | . . . . . . . . . . . . . . . . . . . . . . . Total Orders . | . . . . . . . . . . . . . . . . . . . . . . . Ally Attacks . | . . . . . . . . . . . . . . . . . . . . . . . Total Damage . | . . . . . . . . . . . . . . . . . . . . . . . Kills . | . . . . . . . . . . . . . . . . . . . . . . . Allies Corrupted . | . . . . . . . . . . . . . . . . . . . . . . . Allies Melted . | . . . . . . . . . . . . . . . . . . . . . . . Intel | -11 -10 -10 -9 -9 -8 -7 -7 -7 -7 -6 -5 -5 -5 -4 -4 -4 -4 -3 -3 -2 -2 -1 ------- Run | Yrd Mat Min Mat Min Mat Fac Was Fac DSF Fac Fac Upp Upp Fac Upp Upp War Pro Res Res Tes Acc Robot Analysis Total 1 | . 1 . . . . . . . . . . . . . . . . . . . . . Derelict Logs Recovered 5 | . . . . . . . . . . . . 2 . . 1 2 . . . . . . Drone Launches . | . . . . . . . . . . . . . . . . . . . . . . . Drone Recoveries . | . . . . . . . . . . . . . . . . . . . . . . . Exploration | -11 -10 -10 -9 -9 -8 -7 -7 -7 -7 -6 -5 -5 -5 -4 -4 -4 -4 -3 -3 -2 -2 -1 ------------- Run | Yrd Mat Min Mat Min Mat Fac Was Fac DSF Fac Fac Upp Upp Fac Upp Upp War Pro Res Res Tes Acc Turns Passed 4621 | . 438 14 361 207 341 297 19 22 24 350 331 110 35 33 152 86 337 141 478 363 227 255 Spaces Moved 9735 | 1 310 12 194 149 364 787 65 78 56 700 814 314 114 95 413 291 757 420 1095 1395 647 664 Core 83 | . . . . . . . . . . . . . . . . . . . . . . 83 Treads . | . . . . . . . . . . . . . . . . . . . . . . . Legs 751 | 1 310 12 194 149 85 . . . . . . . . . . . . . . . . . Wheels . | . . . . . . . . . . . . . . . . . . . . . . . Hover . | . . . . . . . . . . . . . . . . . . . . . . . Flight 8901 | . . . . . 279 787 65 78 56 700 814 314 114 95 413 291 757 420 1095 1395 647 581 Fastest Speed 12 | 120 120 120 120 120 29 25 25 25 25 23 23 23 23 23 23 23 23 23 20 20 17 12 Average Speed 30 | 120 120 120 120 120 51 26 25 25 25 23 23 23 23 23 23 23 23 23 21 20 18 24 Slowest Speed 120 | 120 120 120 120 120 120 29 25 25 25 25 23 23 23 23 23 23 94 23 24 20 22 100 Overloaded Moves 33 | . . . . . . . . . . . . . . . . . . . . . . 33 Propulsion Burnouts . | . . . . . . . . . . . . . . . . . . . . . . . Robots Hopped 120 | . . . . . 4 5 . . 2 22 19 . . . 1 1 . 1 7 15 18 25 Cave-ins Triggered . | . . . . . . . . . . . . . . . . . . . . . . . Exploration Rate (%) 41 | 2 57 8 30 43 35 33 76 2 91 27 37 51 12 3 64 54 85 69 31 46 65 29 Regions Visited 22 Branch Regions 9 Pre-discovered Areas 3 | . . . . 1 . . . . . . . . . . 1 1 . . . . . . Known Exits Taken 15 | . . . 1 1 1 . . 1 . 1 . 1 1 1 1 1 1 1 1 1 1 . Unknown Exits Taken 4 | 1 1 1 . . . . . . . . 1 . . . . . . . . . . . Scrap Searched 7 | . . . . 1 . . . . . . . 2 . . 2 2 . . . . . . Spaces Dug 89 | . . . . . . . . . . 6 5 33 . . 5 . . 5 6 14 10 5 Terrain Destroyed 186 | . 6 . 6 7 27 . . . . 17 5 33 . . 32 . . 5 6 14 10 18 Melee 65 | . . . . . . . . . . 6 5 9 . . 5 . . 5 6 14 10 5 Projectile . | . . . . . . . . . . . . . . . . . . . . . . . AOE 121 | . 6 . 6 7 27 . . . . 11 . 24 . . 27 . . . . . . 13 Terrain Rammed . | . . . . . . . . . . . . . . . . . . . . . . . Walls Destroyed . | . . . . . . . . . . . . . . . . . . . . . . . Machines Disabled . | . . . . . . . . . . . . . . . . . . . . . . . Actions | -11 -10 -10 -9 -9 -8 -7 -7 -7 -7 -6 -5 -5 -5 -4 -4 -4 -4 -3 -3 -2 -2 -1 --------- Run | Yrd Mat Min Mat Min Mat Fac Was Fac DSF Fac Fac Upp Upp Fac Upp Upp War Pro Res Res Tes Acc Total 10944 | . 350 11 262 164 475 869 66 79 63 844 898 329 116 101 452 307 919 457 1310 1439 713 720 Wait 848 | . 5 . 15 5 53 72 1 . . 131 69 . . . 30 17 157 33 136 24 60 40 Move 9491 | . 309 11 193 148 355 777 64 77 52 663 777 313 113 94 410 288 756 417 1080 1366 611 617 Hop 103 | . . . . . 4 5 . . 1 14 17 . . . 1 1 . 1 7 13 17 22 Pick Up 59 | . 9 . 8 2 9 5 . . 1 5 2 1 . . . . 1 . 8 2 2 4 Fast Attach 40 | . 1 . 2 . 5 3 . 1 . 3 3 2 . 1 . 1 1 . 3 8 2 4 Attach 54 | . 2 . 6 2 14 . 1 . . 7 1 . . 2 . . . 1 5 2 3 8 Detach 16 | . . . . . 1 1 . 1 . 4 . . . 2 . . . . 3 2 . 2 Swap 25 | . 2 . 3 1 2 3 . . . 2 . 2 . . 2 . . . 2 2 2 2 Drop 58 | . 8 . 5 . 9 3 . . 1 4 3 . . . . . 4 . 9 5 3 4 Fire 81 | . 14 . 30 6 22 . . . . 4 . 2 . . 3 . . . . . . . Melee 112 | . . . . . . . . . . 7 20 9 3 2 6 . . 5 21 15 13 11 Ram 2 | . . . . . . . . . . . . . . . . . . . . . . 2 Kick 1 | . . . . . 1 . . . . . . . . . . . . . . . . . Crush . | . . . . . . . . . . . . . . . . . . . . . . . Escape Stasis 54 | . . . . . . . . . 8 . 6 . . . . . . . 36 . . 4 Rewire . | . . . . . . . . . . . . . . . . . . . . . . . Trap . | . . . . . . . . . . . . . . . . . . . . . . . Miscellaneous . | . . . . . . . . . . . . . . . . . . . . . . . Route ------- -11/Scrapyard -10/Materials (discovered 3 exits: *Mat x2 / [*Min]) -10/Mines -9/Materials -9/Mines -8/Materials -7/Factory -7/Waste -7/Factory -7/DSF -6/Factory -5/Factory -5/Upper Caves -5/Upper Caves -4/Factory (discovered 2 exits: *Res / *Upp) -4/Upper Caves -4/Upper Caves -4/Warlord -3/Proximity Caves -3/Research (discovered 3 exits: *Res / *Qua x2) -2/Research -2/Testing -1/Access (discovered 1 exit: Sur) History --------- Turn | Location | Event 1 | -11/Scrapyard | Discovered new exit (range 0) 1 | -11/Scrapyard | Entered Materials 48 | -10/Materials | Discovered new exit (range 14) 207 | -10/Materials | Discovered new exit (range 9) 291 | -10/Materials | Discovered new exit (range 6) 306 | -10/Materials | Build established: Mutant 439 | -10/Materials | Entered Mines 443 | -10/Mines | Discovered new exit (range 10) 453 | -10/Mines | Entered Materials 453 | -9/Materials | Evolved 2 slots: Propulsion x1, Utility x1 805 | -9/Materials | Discovered new exit (range 8) 812 | -9/Materials | Identified exit to Mines 814 | -9/Materials | Entered Mines 883 | -9/Mines | Build established: Scavenger-Mutant 904 | -9/Mines | Learned location of Storage (-7) 994 | -9/Mines | Discovered new exit (range 15) 1019 | -9/Mines | Identified exit to Materials 1021 | -9/Mines | Entered Materials 1021 | -8/Materials | Evolved 2 slots: Propulsion x1, Utility x1 1210 | -8/Materials | Lost 3 parts (1n2w) 1359 | -8/Materials | Discovered new exit (range 8) 1362 | -8/Materials | Identified exit to Factory 1362 | -8/Materials | Entered Factory 1362 | -7/Factory | Evolved 2 slots: Propulsion x1, Utility x1 1448 | -7/Factory | Discovered new exit (range 14) 1519 | -7/Factory | Fabricated Flight Unit (x2) 1659 | -7/Factory | Sucked down chute 1659 | -7/Factory | Entered Waste 1667 | -7/Waste | Spotted C-40 Crusher 1667 | -7/Waste | Spotted C-40 Crusher 1668 | -7/Waste | Spotted C-40 Crusher 1669 | -7/Waste | Spotted C-40 Crusher 1669 | -7/Waste | Spotted C-40 Crusher 1674 | -7/Waste | EMP discharged 1675 | -7/Waste | Spotted C-40 Crusher 1675 | -7/Waste | Discovered new exit (range 10) 1677 | -7/Waste | Identified exit to Factory 1678 | -7/Waste | Entered Factory 1680 | -7/Factory | Build established: Sprinter 1700 | -7/Factory | Identified exit to DSF 1700 | -7/Factory | Entered DSF 1700 | -7/DSF | Encountered a pitched battle between 0b10 and Warlord forces 1700 | -7/DSF | Spotted B-75 Beast 1720 | -7/DSF | Discovered new exit (range 15) 1724 | -7/DSF | Identified exit to Factory 1724 | -7/DSF | Entered Factory 1724 | -6/Factory | Evolved 2 slots: Utility x2 1749 | -6/Factory | Lost 7 allies 1784 | -6/Factory | Repaired Imp. Light Armor Plating 1929 | -6/Factory | Fabricated Imp. VTOL Module (x1) 2068 | -6/Factory | Discovered new exit (range 19) 2072 | -6/Factory | Identified exit to Factory 2074 | -6/Factory | Search patrols dispatched 2074 | -6/Factory | Entered another Factory area 2074 | -5/Factory | Evolved 2 slots: Utility x2 2326 | -5/Factory | Build established: Hacker-Sprinter 2401 | -5/Factory | Discovered new exit (range 21) 2405 | -5/Factory | Entered Upper Caves 2406 | -5/Upper Caves | Spotted B-75 Beast 2457 | -5/Upper Caves | Learned Factory terminal intel 2458 | -5/Upper Caves | Identified exit to Upper Caves 2515 | -5/Upper Caves | Entered another Upper Caves area 2525 | -5/Upper Caves | Discovered new exit (range 3) 2526 | -5/Upper Caves | Identified exit to Factory 2550 | -5/Upper Caves | Entered Factory 2550 | -4/Factory | Evolved 2 slots: Power x1, Utility x1 2551 | -4/Factory | Loaded intel: 26 terminal locations 2565 | -4/Factory | Discovered new exit (range 20) 2576 | -4/Factory | Discovered new exit (range 6) 2578 | -4/Factory | Identified exit to Research 2580 | -4/Factory | Identified exit to Upper Caves 2583 | -4/Factory | Entered Upper Caves 2663 | -4/Upper Caves | Learned location of Quarantine (-3) 2664 | -4/Upper Caves | Attracted the attention of an 0b10 checkpoint 2725 | -4/Upper Caves | Discovered new exit (range 10) 2735 | -4/Upper Caves | Identified exit to Upper Caves 2735 | -4/Upper Caves | Entered another Upper Caves area 2748 | -4/Upper Caves | Learned Research terminal intel 2772 | -4/Upper Caves | Build established: Hacker-Scout 2789 | -4/Upper Caves | Learned location of Armory (-3) 2814 | -4/Upper Caves | Discovered new exit (range 18) 2817 | -4/Upper Caves | Spotted B-86 Titan 2819 | -4/Upper Caves | Attracted the attention of an 0b10 checkpoint 2820 | -4/Upper Caves | Identified exit to Warlord 2821 | -4/Upper Caves | Entered Warlord 2904 | -4/Warlord | Met Warlord 2927 | -4/Warlord | Warlord's base attacked by MAIN.C 2946 | -4/Warlord | Found Prototype Piercing Weapon 2946 | -4/Warlord | Identified Vortex Lance 2949 | -4/Warlord | Found Vortex Lance 3147 | -4/Warlord | Lost 5 allies 3149 | -4/Warlord | Warlord forces counterattacked 3155 | -4/Warlord | Discovered new exit (range 12) 3157 | -4/Warlord | Identified exit to Proximity Caves 3158 | -4/Warlord | Entered Proximity Caves 3189 | -3/Proximity Caves | Spotter reported a threat 3287 | -3/Proximity Caves | Spotted B-86 Titan 3296 | -3/Proximity Caves | Discovered exit to Research (range 9) 3299 | -3/Proximity Caves | Entered Research 3299 | -3/Research | Evolved 2 slots: Propulsion x1, Utility x1 3300 | -3/Research | Loaded intel: 22 terminal locations 3322 | -3/Research | Discovered new exit (range 14) 3331 | -3/Research | Identified exit to Quarantine 3445 | -3/Research | Identified exit to DSF 3561 | -3/Research | Found Fusion Bomb Launcher 3570 | -3/Research | Discovered exit to Quarantine (range 9) 3665 | -3/Research | Found Prototype Hackware 3665 | -3/Research | Identified Exp. System Shield 3752 | -3/Research | Fabricated Imp. Cesium-ion Thruster? 3776 | -3/Research | Discovered new exit (range 4) 3777 | -3/Research | Identified exit to Research 3777 | -3/Research | Entered another Research area 3777 | -2/Research | Warlord forces began assault on 0b10 3777 | -2/Research | Evolved 2 slots: Propulsion x1, Utility x1 3826 | -2/Research | Spotted B-90 Cyclops 3887 | -2/Research | Research machine network offline 3902 | -2/Research | Met up with Warlord 4086 | -2/Research | Spotted Executioner 4089 | -2/Research | Spotted Striker 4098 | -2/Research | Spotted Striker 4137 | -2/Research | Discovered new exit (range 5) 4138 | -2/Research | Identified exit to Testing 4139 | -2/Research | Found Prototype Hackware 4139 | -2/Research | Identified Exp. Hacking Suite 4140 | -2/Research | Entered Testing 4176 | -2/Testing | Identified exit to Access 4259 | -2/Testing | Fabricated Adv. Surge Thruster? 4367 | -2/Testing | Entered Access 4367 | -1/Access | Evolved 2 slots: Propulsion x1, Utility x1 4402 | -1/Access | Repaired Imp. Propulsion Shielding 4414 | -1/Access | Repaired Sml. Storage Unit 4435 | -1/Access | Repaired Field Propulsion Array 4435 | -1/Access | Build established: Wizard-Scout 4465 | -1/Access | Identified exit to Surface 4545 | -1/Access | Energy Cycler disabled 4557 | -1/Access | Found Gamma Bomb Array 4563 | -1/Access | Spotted B-99 Colossus 4570 | -1/Access | Core integrity fell below 50% 4598 | -1/Access | Core integrity fell below 20% 4622 | -1/Access | Destroyed by S-43 Plague with Heavy Machine Gun Last Messages --------------- 04570_ Slug penetrates Wall. 04570_ Penetrated by Slug. 04570_ Slug penetrates Hyperwave Decoder. 04570_ Slug penetrates Wall. 04570_ Slug penetrates Hyperwave Decoder. 04570_ Slug penetrates Wall. 04581_ Imp. System Shield destroyed. 04593_ S-43 Plague destroyed. 04595_ Slammed into S-43 Plague. 04595_ Exp. System Shield destroyed. 04595_ System corrupted by crushing effect (+2). 04607_ System corrupted: Energy discharge (-34). 04610_ Connecting with Terminal... >>Trojan(Disrupt) Trojan loaded successfully. Testing... Disruption routine running. 04612_ ALERT: Security rotation in progress. 04614_ Slammed into W-44 Eye. 04619_ Exp. Hacking Suite destroyed. Map ----- +----------------------------------------------------+ | ?????????????????????????????????????????????????? | | ?????????????????????????????????????????????????? | | ?????????????????????????????????????????????????? | | ?????????????????????????????????????????????????? | | ?????????????????????????????????????????????????? | | ?????????????????????????????????????????????????? | | ?????????????????????????????????????????????????? | | ?????????????????????????????????????????????????? | | ?????????????????????????????????????????????????? | | ?????????????????????????????????????????????????? | | ?????????????????????????????????????????????????? | | ?????????????????????????????????????????????????? | | ?????????????????????????????????????????????????? | | ?????????????????????????????????????????????????? | | ?????????????????????????????????????????????????? | | ?????????????????????????????????????????????????? | | ?????????????????????????????????????????????????? | | ?????????????????????????????????????????????????? | | ?????????????????????????????????????????????????? | | ?????????????????????????????????????????????????? | | ?????????????????????????????????????????????????? | | ?????????????????????????????????????????????????? | | ?????? ######??????????????????????